fUST/lending_fUST_20240829
["ID","MTS","AMOUNT","RATE_DAILY","PERIOD"]
[336544986,1724945440670,-500.0,0.00019452,2]
[336544987,1724945440680,-151.0,0.00019452,2]
[336544988,1724945440689,-151.0,0.00019452,2]
[336544989,1724945440699,-151.0,0.00019452,2]
[336544990,1724945440708,-500.0,0.00019452,2]
[336544991,1724945440719,-629.76,0.00019452,2]
[336544992,1724945440728,-1223.43,0.00019452,2]
[336544993,1724945440738,-1220.04,0.00019452,2]
[336544994,1724945440747,-4000.0,0.00019452,2]
[336544995,1724945440756,-500.0,0.00019452,2]
[336544996,1724945440766,-500.0,0.00019452,2]
[336544997,1724945440775,-500.0,0.00019452,2]
[336544998,1724945440786,-500.0,0.00019452,2]
[336544999,1724945440795,-500.0,0.00019452,2]
[336545000,1724945440804,-2026.3,0.00019452,2]
[336545001,1724945440814,-500.0,0.00019452,2]
[336545002,1724945440824,-500.0,0.00019452,2]
[336545003,1724945440833,-1545.36,0.00019452,2]
[336545004,1724945440842,-1327.59,0.00019452,2]
[336545005,1724945440851,-500.0,0.00019452,2]
[336545006,1724945440861,-500.0,0.00019452,2]
[336545007,1724945440870,-500.0,0.00019452,2]
[336545008,1724945440879,-500.0,0.00019452,2]
[336545009,1724945440889,-500.0,0.00019452,2]
[336545010,1724945440899,-500.0,0.00019452,2]
[336545011,1724945440908,-500.0,0.00019452,2]
[336545012,1724945440918,-500.0,0.00019452,2]
[336545013,1724945440927,-468.28,0.00019452,2]
[336545014,1724945440937,-834.61,0.00019452,2]
[336545015,1724945440946,-500.0,0.00019452,2]
[336545016,1724945440956,-500.0,0.00019452,2]
[336545017,1724945440966,-540.36094233,0.00019452,2]
[336545018,1724945440975,-744.42,0.00019452,2]
[336545019,1724945440985,-500.0,0.00019452,2]
[336545020,1724945440994,-500.0,0.00019452,2]
[336545021,1724945441003,-500.0,0.00019452,2]
[336545022,1724945441012,-231.42823215,0.00019452,2]
[336545023,1724945441022,-2879.82,0.00019452,2]
[336545024,1724945441033,-500.0,0.00019452,2]
[336545025,1724945441042,-500.0,0.00019452,2]
[336545026,1724945441052,-500.0,0.00019452,2]
[336545027,1724945441062,-500.0,0.00019452,2]
[336545028,1724945441072,-500.0,0.00019452,2]
[336545029,1724945441082,-500.0,0.00019452,2]
[336545030,1724945441092,-20075.12,0.00019452,2]
[336545031,1724945441103,-500.0,0.00019452,2]
[336545032,1724945441113,-500.0,0.00019452,2]
[336545033,1724945441123,-548.76487318,0.00019452,2]
[336545034,1724945441133,-500.0,0.00019452,2]
[336545035,1724945441143,-500.0,0.00019452,2]
[336545036,1724945441153,-500.0,0.00019452,2]
[336545037,1724945441162,-368.52721332,0.00019452,2]
[336545038,1724945441172,-500.0,0.00019452,2]
[336545039,1724945441181,-1052.47,0.00019452,2]
[336545040,1724945441191,-500.0,0.00019452,2]
[336545041,1724945441201,-2683.23,0.00019452,2]
[336545042,1724945441211,-151.0,0.00019452,2]
[336545043,1724945441221,-151.0,0.00019452,2]
[336545044,1724945441232,-183.975718,0.00019452,2]
[336545045,1724945441242,-500.0,0.00019452,2]
[336545046,1724945441253,-500.0,0.00019452,2]
[336545047,1724945441264,-358.88814414,0.00019473,2]
[336545048,1724945441274,-500.0,0.00019473,2]
[336545049,1724945441285,-168.70907375,0.00019473,2]
[336545050,1724945441294,-2000.0,0.000195,2]
[336545051,1724945441303,-600.0,0.00019673,2]
[336545052,1724945441313,-181.85,0.000197,2]
[336545053,1724945441323,-306.9495332,0.000197,2]
[336545054,1724945441332,-391.89839892,0.00019715,2]
[336545055,1724945441342,-6385.53152416,0.00019716,2]
[336545056,1724945441352,-1301.31,0.00019726,2]
[336545057,1724945441362,-177.25932517,0.00019726,2]
[336545058,1724945441372,-500.0,0.00019726,2]
[336545059,1724945441381,-573.49086954,0.00019726,2]
[336545060,1724945441391,-500.0,0.00019726,2]
[336545061,1724945441401,-304.46514646,0.00019726,2]
[336545062,1724945441410,-500.0,0.00019726,2]
[336545063,1724945441420,-533.51,0.00019726,2]
[336545064,1724945441429,-1798.12,0.00019726,2]
[336545065,1724945441439,-500.0,0.00019726,2]
[336545066,1724945441449,-1314.39,0.00019726,2]
[336545067,1724945441459,-500.0,0.00019726,2]
[336545068,1724945441469,-1538.71,0.00019726,2]
[336545069,1724945441479,-1209.57,0.00019726,2]
[336545070,1724945441488,-1651.69,0.00019726,2]
[336545071,1724945441498,-3122.46,0.00019726,2]
[336545072,1724945441507,-500.0,0.00019726,2]
[336545073,1724945441517,-500.0,0.00019726,2]
[336545074,1724945441531,-1100.36,0.00019726,2]
[336545075,1724945441541,-5194.59,0.00019726,2]
[336545076,1724945441551,-500.0,0.00019726,2]
[336545077,1724945441560,-9063.69,0.00019726,2]
[336545078,1724945441570,-500.0,0.00019726,2]
[336545079,1724945441580,-500.0,0.00019726,2]
[336545080,1724945441591,-500.0,0.00019726,2]
[336545081,1724945441602,-500.0,0.00019726,2]
[336545082,1724945441612,-151.0,0.00019726,2]
[336545083,1724945441623,-182.293782,0.00019726,2]
[336545084,1724945441633,-500.0,0.00019726,2]
[336545085,1724945441642,-1223.43,0.00019726,2]
[336545086,1724945441652,-1220.04,0.00019726,2]
[336545087,1724945441663,-500.0,0.00019726,2]
[336545088,1724945441672,-591.97,0.00019726,2]
[336545089,1724945441682,-500.0,0.00019726,2]
[336545090,1724945441692,-500.0,0.00019726,2]
[336545091,1724945441702,-500.0,0.00019726,2]
[336545092,1724945441712,-2026.3,0.00019726,2]
[336545093,1724945441722,-500.0,0.00019726,2]
[336545094,1724945441734,-500.0,0.00019726,2]
[336545095,1724945441744,-1545.36,0.00019726,2]
[336545096,1724945441754,-1327.59,0.00019726,2]
[336545097,1724945441764,-500.0,0.00019726,2]
[336545098,1724945441773,-572.81,0.00019726,2]
[336545099,1724945441784,-500.0,0.00019726,2]
[336545100,1724945441793,-500.0,0.00019726,2]
[336545101,1724945441803,-500.0,0.00019726,2]
[336545102,1724945441814,-500.0,0.00019726,2]
[336545103,1724945441825,-500.0,0.00019726,2]
[336545104,1724945441836,-834.61,0.00019726,2]
[336545105,1724945441847,-500.0,0.00019726,2]
[336545106,1724945441859,-744.42,0.00019726,2]
[336545107,1724945441869,-500.0,0.00019726,2]
[336545108,1724945441881,-500.0,0.00019726,2]
[336545109,1724945441890,-500.0,0.00019726,2]
[336545110,1724945441900,-2879.82,0.00019726,2]
[336545111,1724945441911,-500.0,0.00019726,2]
[336545112,1724945441922,-500.0,0.00019726,2]
[336545113,1724945441932,-500.0,0.00019726,2]
[336545114,1724945441944,-500.0,0.00019726,2]
[336545115,1724945441954,-500.0,0.00019726,2]
[336545116,1724945441964,-500.0,0.00019726,2]
[336545117,1724945441976,-500.0,0.00019726,2]
[336545118,1724945441986,-500.0,0.00019726,2]
[336545119,1724945441996,-20075.12,0.00019726,2]
[336545120,1724945442006,-500.0,0.00019726,2]
[336545121,1724945442016,-1052.47,0.00019726,2]
[336545122,1724945442027,-2683.23,0.00019726,2]
[336545123,1724945442037,-500.0,0.00019726,2]
[336545124,1724945442046,-500.0,0.00019726,2]
[336545125,1724945442056,-11589.93077219,0.000199,15]
[336545126,1724945442066,-1169.10954673,0.000199,2]
[336545127,1724945442077,-258.38303476,0.00019972,5]
[336545128,1724945442088,-3192.76576208,0.0001998,2]
[336545129,1724945442097,-23633.03262479,0.0001999,2]
[336545130,1724945442108,-25542.1260966,0.0001999,2]
[336545131,1724945442119,-623.97148505,0.0002,13]
[336545132,1724945442128,-16947.54566989,0.0002,4]
[336545133,1724945442137,-501.30329718,0.0002,2]
[336545134,1724945442147,-513.0,0.0002,2]
[336545135,1724945442168,-62846.25907435,0.0002,2]
[336545147,1724945443304,-964.27119923,0.00019451,2]
[336545148,1724945443314,-23693.77958387,0.0002,2]
[336545164,1724945446105,-739.348,0.00019178,2]
[336545168,1724945446263,-410.752,0.00019178,2]
[336545169,1724945446273,-207.8243323,0.000192,2]
[336545170,1724945446285,-1150.1,0.00019452,2]
[336545172,1724945446294,-1150.1,0.00019726,2]
[336545173,1724945446304,-2132.41008999,0.0002,2]
[336545178,1724945534353,500.0,0.00015,2]
[336545190,1724945731429,299.997337,0.00014247,2]
[336545191,1724945760721,300.0,0.00017499,2]
[336545192,1724945763253,300.0,0.00017499,2]
[336545193,1724945820587,300.0,0.00017499,2]
[336545194,1724945822471,300.0,0.00017499,2]
[336545199,1724945880651,300.0,0.00017499,2]
[336545200,1724945882525,300.0,0.00017499,2]
[336545204,1724945940648,300.0,0.00017499,2]
[336545205,1724945943593,300.0,0.00017499,2]
[336545209,1724946000614,300.0,0.00017499,2]
[336545210,1724946002556,300.0,0.00017499,2]
[336545214,1724946060678,300.0,0.00017499,2]
[336545219,1724946120653,300.0,0.00017499,2]
[336545220,1724946122553,300.0,0.00017499,2]
[336545222,1724946180578,300.0,0.00017499,2]
[336545223,1724946183679,300.0,0.00017499,2]
[336545227,1724946223889,500.0,0.00025,120]
[336545228,1724946240975,300.0,0.00017499,2]
[336545229,1724946242538,214.0,0.00017499,2]
[336545233,1724946300731,300.0,0.00017499,2]
[336545237,1724946360654,300.0,0.00017499,2]
[336545240,1724946421184,300.0,0.00017499,2]
[336545241,1724946425124,-4787.10042792,0.000175,2]
[336545244,1724946440097,-305.22444827,0.000175,2]
[336545251,1724946607851,2837.16051067,0.000174,2]
[336545351,1724946638508,-7786.77512381,0.000175,2]
[336545353,1724946638521,-300.0,0.00017637,2]
[336545354,1724946638533,-8609.4907381,0.00017638,2]
[336545355,1724946638545,-1225.7155925,0.00017642,2]
[336545356,1724946638557,-500.0,0.000178,2]
[336545357,1724946638569,-250.0,0.00017829,2]
[336545358,1724946638581,-250.0,0.00017878,2]
[336545359,1724946638593,-250.0,0.00017927,2]
[336545360,1724946638610,-250.0,0.00017976,2]
[336545361,1724946638623,-250.0,0.00018025,2]
[336545362,1724946638635,-250.0,0.00018074,2]
[336545363,1724946638649,-250.0,0.00018123,2]
[336545364,1724946638660,-250.0,0.00018172,2]
[336545365,1724946638670,-250.0,0.0001822,2]
[336545366,1724946638683,-250.0,0.00018269,2]
[336545367,1724946638695,-250.0,0.00018318,2]
[336545368,1724946638705,-250.0,0.00018367,2]
[336545369,1724946638717,-250.0,0.00018416,2]
[336545370,1724946638731,-250.0,0.00018465,2]
[336545371,1724946638742,-250.0,0.00018514,2]
[336545372,1724946638755,-250.0,0.00018563,2]
[336545373,1724946638767,-250.0,0.00018612,2]
[336545374,1724946638778,-164.589268,0.00018904,2]
[336545375,1724946638791,-2262.0473148,0.00018978,2]
[336545376,1724946638806,-4399.76018103,0.00019,2]
[336545377,1724946638821,-325.7978675,0.00019078,2]
[336545378,1724946638834,-12176.42915034,0.00019078,2]
[336545380,1724946638846,-325.79786746,0.00019147,2]
[336545381,1724946638859,-1017.91,0.00019168,3]
[336545382,1724946638871,-508.96,0.00019168,3]
[336545383,1724946638883,-254.48,0.00019168,3]
[336545385,1724946638898,-763.45,0.00019168,3]
[336545387,1724946638910,-12132.5098959,0.00019168,2]
[336545389,1724946638921,-500.0,0.00019177,2]
[336545390,1724946638933,-635.76557435,0.00019177,2]
[336545391,1724946638945,-500.0,0.00019178,2]
[336545393,1724946638957,-209.81980082,0.00019178,2]
[336545396,1724946638972,-500.0,0.00019178,2]
[336545397,1724946638984,-384.41086874,0.00019178,2]
[336545398,1724946638997,-500.0,0.00019178,2]
[336545399,1724946639009,-500.0,0.00019178,2]
[336545400,1724946639021,-500.0,0.00019178,2]
[336545401,1724946639035,-500.0,0.00019178,2]
[336545402,1724946639046,-503.65699051,0.00019178,2]
[336545403,1724946639058,-500.0,0.00019178,2]
[336545404,1724946639071,-500.0,0.00019178,2]
[336545405,1724946639085,-519.09568613,0.00019178,2]
[336545406,1724946639096,-500.0,0.00019178,2]
[336545407,1724946639108,-500.0,0.00019178,2]
[336545408,1724946639119,-500.0,0.00019178,2]
[336545409,1724946639131,-500.0,0.00019178,2]
[336545410,1724946639142,-500.0,0.00019178,2]
[336545411,1724946639153,-500.0,0.00019178,2]
[336545412,1724946639164,-500.0,0.00019178,2]
[336545413,1724946639176,-553.05,0.00019178,2]
[336545414,1724946639187,-500.0,0.00019178,2]
[336545415,1724946639199,-500.0,0.00019178,2]
[336545416,1724946639210,-500.0,0.00019178,2]
[336545417,1724946639221,-500.0,0.00019178,2]
[336545418,1724946639232,-500.0,0.00019178,2]
[336545419,1724946639243,-519.68,0.00019178,2]
[336545420,1724946639253,-504.6,0.00019178,2]
[336545421,1724946639264,-500.0,0.00019178,2]
[336545422,1724946639275,-500.0,0.00019178,2]
[336545423,1724946639287,-500.0,0.00019178,2]
[336545424,1724946639300,-500.0,0.00019178,2]
[336545425,1724946639311,-500.0,0.00019178,2]
[336545426,1724946639323,-500.0,0.00019178,2]
[336545427,1724946639334,-500.0,0.00019178,2]
[336545428,1724946639347,-211.61080011,0.00019178,2]
[336545429,1724946639359,-500.0,0.00019178,2]
[336545430,1724946639370,-500.0,0.00019178,2]
[336545431,1724946639381,-596.77,0.00019178,2]
[336545432,1724946639393,-500.0,0.00019178,2]
[336545433,1724946639404,-500.0,0.00019178,2]
[336545434,1724946639416,-500.0,0.00019178,2]
[336545435,1724946639430,-500.0,0.00019178,2]
[336545436,1724946639444,-500.0,0.00019178,2]
[336545437,1724946639456,-500.0,0.00019178,2]
[336545438,1724946639467,-502.92912567,0.00019178,2]
[336545439,1724946639490,-608.05,0.00019178,2]
[336545440,1724946639504,-500.0,0.00019178,2]
[336545441,1724946639516,-500.0,0.00019178,2]
[336545442,1724946639530,-500.0,0.00019178,2]
[336545443,1724946639543,-500.0,0.00019178,2]
[336545444,1724946639557,-500.0,0.00019178,2]
[336545445,1724946639568,-500.0,0.00019178,2]
[336545446,1724946639580,-500.0,0.00019178,2]
[336545447,1724946639592,-500.0,0.00019178,2]
[336545448,1724946639603,-151.0,0.00019178,2]
[336545449,1724946639615,-500.89974539,0.00019178,2]
[336545450,1724946639627,-501.59712476,0.00019178,2]
[336545451,1724946639639,-500.0,0.00019178,2]
[336545452,1724946639651,-500.0,0.00019178,2]
[336545453,1724946639663,-500.82846003,0.00019178,2]
[336545454,1724946639676,-151.0,0.00019178,2]
[336545455,1724946639688,-500.0,0.00019178,2]
[336545457,1724946639700,-500.0,0.00019178,2]
[336545459,1724946639711,-500.0,0.00019178,2]
[336545461,1724946639723,-500.0,0.00019178,2]
[336545462,1724946639735,-500.0,0.00019178,2]
[336545463,1724946639746,-500.0,0.00019178,2]
[336545464,1724946639758,-500.0,0.00019178,2]
[336545465,1724946639769,-500.0,0.00019178,2]
[336545466,1724946639780,-500.0,0.00019178,2]
[336545467,1724946639791,-500.0,0.00019178,2]
[336545468,1724946639803,-500.0,0.00019178,2]
[336545469,1724946639814,-500.0,0.00019178,2]
[336545470,1724946639825,-151.0,0.00019178,2]
[336545471,1724946639837,-500.0,0.00019178,2]
[336545472,1724946639848,-500.0,0.00019178,2]
[336545473,1724946639860,-500.71122413,0.00019178,2]
[336545474,1724946639872,-500.0,0.00019178,2]
[336545475,1724946639884,-301.79866319,0.00019178,2]
[336545476,1724946639900,-500.0,0.00019178,2]
[336545477,1724946639915,-500.0,0.00019178,2]
[336545478,1724946639931,-500.0,0.00019178,2]
[336545479,1724946639945,-500.0,0.00019178,2]
[336545481,1724946639956,-500.0,0.00019178,2]
[336545483,1724946639968,-500.0,0.00019178,2]
[336545485,1724946639982,-500.0,0.00019178,2]
[336545486,1724946639992,-500.0,0.00019178,2]
[336545488,1724946640002,-500.0,0.00019178,2]
[336545490,1724946640013,-213.83615634,0.00019178,2]
[336545492,1724946640023,-500.0,0.00019178,2]
[336545493,1724946640033,-500.0,0.00019178,2]
[336545506,1724946640239,-500.0,0.00019178,2]
[336545507,1724946640256,-500.0,0.00019178,2]
[336545508,1724946640266,-500.0,0.00019178,2]
[336545509,1724946640277,-500.0,0.00019178,2]
[336545510,1724946640286,-500.0,0.00019178,2]
[336545511,1724946640297,-617.03,0.00019178,2]
[336545512,1724946640306,-500.0,0.00019178,2]
[336545513,1724946640316,-500.0,0.00019178,2]
[336545514,1724946640327,-500.0,0.00019178,2]
[336545515,1724946640336,-501.49380143,0.00019178,2]
[336545516,1724946640347,-500.0,0.00019178,2]
[336545517,1724946640358,-500.0,0.00019178,2]
[336545518,1724946640370,-500.0,0.00019178,2]
[336545519,1724946640380,-500.0,0.00019178,2]
[336545520,1724946640391,-500.0,0.00019178,2]
[336545521,1724946640402,-500.0,0.00019178,2]
[336545522,1724946640412,-500.0,0.00019178,2]
[336545523,1724946640424,-500.0,0.00019178,2]
[336545524,1724946640439,-526.55,0.00019178,2]
[336545525,1724946640449,-500.0,0.00019178,2]
[336545526,1724946640459,-500.0,0.00019178,2]
[336545527,1724946640469,-500.0,0.00019178,2]
[336545528,1724946640479,-500.0,0.00019178,2]
[336545529,1724946640488,-500.0,0.00019178,2]
[336545530,1724946640499,-500.0,0.00019178,2]
[336545531,1724946640508,-500.0,0.00019178,2]
[336545532,1724946640518,-500.0,0.00019178,2]
[336545533,1724946640529,-500.0,0.00019178,2]
[336545534,1724946640538,-500.0,0.00019178,2]
[336545535,1724946640548,-500.0,0.00019178,2]
[336545536,1724946640557,-500.0,0.00019178,2]
[336545537,1724946640567,-500.0,0.00019178,2]
[336545538,1724946640577,-500.0,0.00019178,2]
[336545539,1724946640587,-500.0,0.00019178,2]
[336545540,1724946640597,-500.0,0.00019178,2]
[336545541,1724946640607,-500.0,0.00019178,2]
[336545542,1724946640616,-501.89704672,0.00019178,2]
[336545543,1724946640626,-500.0,0.00019178,2]
[336545544,1724946640640,-500.0,0.00019178,2]
[336545545,1724946640651,-500.0,0.00019178,2]
[336545546,1724946640661,-500.0,0.00019178,2]
[336545547,1724946640674,-500.0,0.00019178,2]
[336545548,1724946640685,-533.37515103,0.00019178,2]
[336545549,1724946640695,-501.90702975,0.00019178,2]
[336545550,1724946640705,-500.0,0.00019178,2]
[336545551,1724946640715,-500.0,0.00019178,2]
[336545552,1724946640724,-500.0,0.00019178,2]
[336545553,1724946640734,-500.0,0.00019178,2]
[336545554,1724946640743,-500.0,0.00019178,2]
[336545555,1724946640754,-500.0,0.00019178,2]
[336545556,1724946640765,-406.59635963,0.00019178,2]
[336545557,1724946640776,-500.0,0.00019178,2]
[336545558,1724946640788,-500.0,0.00019178,2]
[336545559,1724946640799,-500.0,0.00019178,2]
[336545560,1724946640808,-500.0,0.00019178,2]
[336545561,1724946640818,-500.0,0.00019178,2]
[336545562,1724946640828,-500.0,0.00019178,2]
[336545563,1724946640837,-500.0,0.00019178,2]
[336545564,1724946640848,-500.0,0.00019178,2]
[336545565,1724946640857,-151.0,0.00019178,2]
[336545566,1724946640867,-151.0,0.00019178,2]
[336545567,1724946640877,-500.0,0.00019178,2]
[336545568,1724946640888,-582.4569121,0.00019178,2]
[336545569,1724946640900,-500.0,0.00019178,2]
[336545570,1724946640910,-607.98009222,0.00019178,2]
[336545571,1724946640920,-500.0,0.00019178,2]
[336545572,1724946640931,-500.0,0.00019178,2]
[336545573,1724946640941,-500.0,0.00019178,2]
[336545574,1724946640951,-500.0,0.00019178,2]
[336545575,1724946640962,-500.99634791,0.00019178,2]
[336545576,1724946640972,-500.0,0.00019178,2]
[336545577,1724946640983,-500.0,0.00019178,2]
[336545578,1724946640993,-500.0,0.00019178,2]
[336545579,1724946641004,-500.0,0.00019178,2]
[336545580,1724946641015,-500.0,0.00019178,2]
[336545581,1724946641026,-500.0,0.00019178,2]
[336545582,1724946641036,-151.0,0.00019178,2]
[336545583,1724946641047,-500.0,0.00019178,2]
[336545584,1724946641059,-500.0,0.00019178,2]
[336545585,1724946641069,-151.0,0.00019178,2]
[336545586,1724946641079,-500.0,0.00019178,2]
[336545587,1724946641090,-500.0,0.00019178,2]
[336545588,1724946641101,-500.0,0.00019178,2]
[336545589,1724946641111,-500.0,0.00019178,2]
[336545590,1724946641122,-500.0,0.00019178,2]
[336545591,1724946641132,-555.84,0.00019178,2]
[336545592,1724946641142,-500.0,0.00019178,2]
[336545593,1724946641152,-500.0,0.00019178,2]
[336545594,1724946641162,-500.0,0.00019178,2]
[336545595,1724946641173,-500.0,0.00019178,2]
[336545596,1724946641186,-500.0,0.00019178,2]
[336545597,1724946641197,-500.0,0.00019178,2]
[336545598,1724946641207,-500.0,0.00019178,2]
[336545599,1724946641219,-500.0,0.00019178,2]
[336545600,1724946641229,-500.0,0.00019178,2]
[336545601,1724946641241,-500.0,0.00019178,2]
[336545602,1724946641252,-500.0,0.00019178,2]
[336545603,1724946641263,-500.0,0.00019178,2]
[336545604,1724946641274,-500.0,0.00019178,2]
[336545605,1724946641287,-500.0,0.00019178,2]
[336545606,1724946641296,-500.0,0.00019178,2]
[336545607,1724946641306,-500.0,0.00019178,2]
[336545608,1724946641316,-500.0,0.00019178,2]
[336545609,1724946641326,-500.0,0.00019178,2]
[336545610,1724946641337,-500.0,0.00019178,2]
[336545611,1724946641347,-500.0,0.00019178,2]
[336545612,1724946641358,-500.0,0.00019178,2]
[336545613,1724946641369,-3004.5,0.00019178,2]
[336545614,1724946641380,-500.0,0.00019178,2]
[336545615,1724946641391,-500.0,0.00019178,2]
[336545616,1724946641401,-500.0,0.00019178,2]
[336545617,1724946641411,-500.0,0.00019178,2]
[336545618,1724946641422,-1333.73,0.00019178,2]
[336545619,1724946641436,-500.0,0.00019178,2]
[336545620,1724946641445,-194.26378796,0.00019178,2]
[336545621,1724946641455,-500.0,0.00019178,2]
[336545622,1724946641464,-500.0,0.00019178,2]
[336545623,1724946641475,-500.0,0.00019178,2]
[336545624,1724946641485,-500.41945364,0.00019178,2]
[336545625,1724946641494,-500.0,0.00019178,2]
[336545626,1724946641504,-4000.0,0.00019178,2]
[336545627,1724946641514,-1247.09,0.00019178,2]
[336545628,1724946641524,-500.0,0.00019178,2]
[336545629,1724946641535,-1095.73,0.00019178,2]
[336545630,1724946641545,-500.0,0.00019178,2]
[336545631,1724946641562,-500.0,0.00019178,2]
[336545632,1724946641577,-500.0,0.00019178,2]
[336545633,1724946641588,-500.0,0.00019178,2]
[336545634,1724946641598,-489.15234295,0.00019178,2]
[336545635,1724946641608,-500.0,0.00019178,2]
[336545636,1724946641618,-500.0,0.00019178,2]
[336545637,1724946641630,-500.0,0.00019178,2]
[336545638,1724946641639,-1744.03,0.00019178,2]
[336545639,1724946641649,-500.0,0.00019178,2]
[336545640,1724946641660,-500.0,0.00019178,2]
[336545641,1724946641670,-151.0,0.00019178,2]
[336545642,1724946641681,-500.0,0.00019178,2]
[336545643,1724946641692,-500.0,0.00019178,2]
[336545644,1724946641702,-500.0,0.00019178,2]
[336545645,1724946641712,-500.0,0.00019178,2]
[336545646,1724946641722,-500.0,0.00019178,2]
[336545647,1724946641733,-500.0,0.00019178,2]
[336545648,1724946641743,-500.0,0.00019178,2]
[336545649,1724946641755,-619.30048592,0.00019178,2]
[336545650,1724946641766,-503.87308445,0.00019178,2]
[336545651,1724946641778,-500.0,0.00019178,2]
[336545652,1724946641790,-500.0,0.00019178,2]
[336545653,1724946641801,-3054.56,0.00019178,2]
[336545654,1724946641811,-505.36427132,0.00019178,2]
[336545656,1724946641822,-619.58031229,0.00019178,2]
[336545657,1724946641832,-500.0,0.00019178,2]
[336545659,1724946641841,-500.0,0.00019178,2]
[336545661,1724946641851,-500.0,0.00019178,2]
[336545663,1724946641862,-500.0,0.00019178,2]
[336545665,1724946641873,-527.66252448,0.00019178,2]
[336545666,1724946641884,-500.0,0.00019178,2]
[336545668,1724946641899,-500.0,0.00019178,2]
[336545669,1724946641910,-500.0,0.00019178,2]
[336545670,1724946641921,-500.0,0.00019178,2]
[336545671,1724946641932,-5052.12,0.00019178,2]
[336545672,1724946641941,-500.0,0.00019178,2]
[336545673,1724946641951,-500.0,0.00019178,2]
[336545674,1724946641962,-500.0,0.00019178,2]
[336545675,1724946641973,-500.0,0.00019178,2]
[336545676,1724946641985,-500.0,0.00019178,2]
[336545677,1724946641995,-500.0,0.00019178,2]
[336545678,1724946642006,-500.0,0.00019178,2]
[336545679,1724946642017,-500.0,0.00019178,2]
[336545680,1724946642029,-500.0,0.00019178,2]
[336545681,1724946642038,-500.0,0.00019178,2]
[336545683,1724946642049,-1191.35,0.00019178,2]
[336545685,1724946642059,-500.0,0.00019178,2]
[336545687,1724946642069,-1183.07,0.00019178,2]
[336545689,1724946642080,-500.0,0.00019178,2]
[336545690,1724946642091,-1348.42,0.00019178,2]
[336545691,1724946642102,-239.92305182,0.00019178,2]
[336545692,1724946642113,-500.0,0.00019178,2]
[336545693,1724946642123,-500.0,0.00019178,2]
[336545694,1724946642134,-500.0,0.00019178,2]
[336545695,1724946642144,-500.0,0.00019178,2]
[336545696,1724946642155,-500.0,0.00019178,2]
[336545697,1724946642166,-1531.51,0.00019178,2]
[336545698,1724946642178,-500.0,0.00019178,2]
[336545699,1724946642192,-500.0,0.00019178,2]
[336545700,1724946642201,-541.14321834,0.00019178,2]
[336545701,1724946642212,-500.0,0.00019178,2]
[336545702,1724946642222,-500.8191015,0.00019178,2]
[336545703,1724946642232,-500.0,0.00019178,2]
[336545704,1724946642242,-500.0,0.00019178,2]
[336545705,1724946642252,-500.0,0.00019178,2]